[Event "*** SCC Grand Prix: Titled Tuesday Blitz"]
[Site "Chess.com"]
[Date "2020.06.09"]
[Round "4"]
[White "ShahMatKanal"]
[Black "novendrapriasmoro"]
[Result "1/2-1/2"]
[WhiteElo "2482"]
[BlackElo "2665"]
[TimeControl "180+1"]
[EndTime "9:40:44 PDT"]
[Termination "Game drawn - insufficient material"]

1. e4 {[%clk 0:03:00.9]} 1... c5 {[%clk 0:03:00]} 2. Nc3 {[%clk 0:02:58.8]} 2...
Nc6 {[%clk 0:03:00.1]} 3. Bb5 {[%clk 0:02:57.5]} 3... g6 {[%clk 0:02:58.9]} 4.
Bxc6 {[%clk 0:02:55.7]} 4... bxc6 {[%clk 0:02:59.8]} 5. d3 {[%clk 0:02:56.1]}
5... Bg7 {[%clk 0:03:00.7]} 6. Nge2 {[%clk 0:02:56.2]} 6... Nh6 {[%clk
0:02:59.8]} 7. Be3 {[%clk 0:02:51.8]} 7... d6 {[%clk 0:02:59.6]} 8. h3 {[%clk
0:02:49.4]} 8... f6 {[%clk 0:02:59.1]} 9. Qd2 {[%clk 0:02:43.9]} 9... Nf7 {[%clk
0:02:59.2]} 10. O-O {[%clk 0:02:43.4]} 10... O-O {[%clk 0:02:59.1]} 11. f4
{[%clk 0:02:31.6]} 11... f5 {[%clk 0:02:59.1]} 12. Rae1 {[%clk 0:02:17.7]} 12...
e5 {[%clk 0:02:56.5]} 13. fxe5 {[%clk 0:02:09.9]} 13... Nxe5 {[%clk 0:02:57.4]}
14. Bh6 {[%clk 0:02:08.2]} 14... fxe4 {[%clk 0:02:54]} 15. Bxg7 {[%clk
0:02:03.8]} 15... Kxg7 {[%clk 0:02:54.9]} 16. Nxe4 {[%clk 0:01:59.4]} 16... h6
{[%clk 0:02:28]} 17. Qc3 {[%clk 0:01:47.6]} 17... Rxf1+ {[%clk 0:02:17.3]} 18.
Rxf1 {[%clk 0:01:47.6]} 18... Qe7 {[%clk 0:02:17.7]} 19. d4 {[%clk 0:01:40.2]}
19... cxd4 {[%clk 0:02:12]} 20. Nxd4 {[%clk 0:01:40.3]} 20... Bd7 {[%clk
0:02:06.4]} 21. Nf3 {[%clk 0:01:22.3]} 21... Rf8 {[%clk 0:01:53.1]} 22. Nxd6
{[%clk 0:00:57.2]} 22... Rxf3 {[%clk 0:01:49]} 23. Rxf3 {[%clk 0:00:57.2]} 23...
Qxd6 {[%clk 0:01:49.2]} 24. Rd3 {[%clk 0:00:55.4]} 24... Qf6 {[%clk 0:01:42.4]}
25. Re3 {[%clk 0:00:49]} 25... Nf7 {[%clk 0:01:41]} 26. Qxf6+ {[%clk 0:00:45.9]}
26... Kxf6 {[%clk 0:01:41.9]} 27. Ra3 {[%clk 0:00:46.6]} 27... Bf5 {[%clk
0:01:40.2]} 28. c3 {[%clk 0:00:42.7]} 28... Nd6 {[%clk 0:01:39]} 29. Rxa7 {[%clk
0:00:42.6]} 29... Nc4 {[%clk 0:01:38.2]} 30. Rc7 {[%clk 0:00:33.4]} 30... Be4
{[%clk 0:01:37.3]} 31. a4 {[%clk 0:00:27]} 31... Nxb2 {[%clk 0:00:58.4]} 32. a5
{[%clk 0:00:27]} 32... Na4 {[%clk 0:00:58.8]} 33. a6 {[%clk 0:00:24.2]} 33... c5
{[%clk 0:00:59]} 34. a7 {[%clk 0:00:21.3]} 34... Ke6 {[%clk 0:00:49]} 35. Rg7
{[%clk 0:00:19.3]} 35... Nb6 {[%clk 0:00:47.4]} 36. Rg8 {[%clk 0:00:17.1]} 36...
Kd6 {[%clk 0:00:44.8]} 37. Kf2 {[%clk 0:00:15.7]} 37... g5 {[%clk 0:00:38.3]}
38. g3 {[%clk 0:00:14.9]} 38... Kc7 {[%clk 0:00:34.3]} 39. Rh8 {[%clk
0:00:14.2]} 39... Kb7 {[%clk 0:00:33.9]} 40. Rxh6 {[%clk 0:00:12.7]} 40... Nd5
{[%clk 0:00:33.1]} 41. c4 {[%clk 0:00:10.4]} 41... Nb4 {[%clk 0:00:26.9]} 42.
Ke3 {[%clk 0:00:09.2]} 42... Bd3 {[%clk 0:00:25.5]} 43. Rh8 {[%clk 0:00:03.8]}
43... Kxa7 {[%clk 0:00:25.6]} 44. h4 {[%clk 0:00:04.3]} 44... gxh4 {[%clk
0:00:25.1]} 45. gxh4 {[%clk 0:00:05.2]} 45... Bxc4 {[%clk 0:00:26]} 46. h5
{[%clk 0:00:05.7]} 46... Nd5+ {[%clk 0:00:25.1]} 47. Kd2 {[%clk 0:00:04.1]}
47... Bb5 {[%clk 0:00:16.3]} 48. h6 {[%clk 0:00:03.9]} 48... c4 {[%clk 0:00:15]}
49. Rd8 {[%clk 0:00:03.7]} 49... c3+ {[%clk 0:00:14.8]} 50. Kc2 {[%clk
0:00:03.3]} 50... Ba4+ {[%clk 0:00:14.2]} 51. Kc1 {[%clk 0:00:02.9]} 51... Nb4
{[%clk 0:00:13.3]} 52. Rc8 {[%clk 0:00:02.5]} 52... Nd3+ {[%clk 0:00:12.5]} 53.
Kb1 {[%clk 0:00:02.7]} 53... c2+ {[%clk 0:00:09.6]} 54. Rxc2 {[%clk 0:00:02]}
54... Bxc2+ {[%clk 0:00:10.5]} 55. Kxc2 {[%clk 0:00:02.1]} 55... Ne5 {[%clk
0:00:10.9]} 56. h7 {[%clk 0:00:02]} 56... Nf7 {[%clk 0:00:10.8]} 57. Kd3 {[%clk
0:00:02.9]} 57... Kb8 {[%clk 0:00:10.6]} 58. Ke4 {[%clk 0:00:03.8]} 58... Kc8
{[%clk 0:00:10.2]} 59. Kf5 {[%clk 0:00:04.7]} 59... Kd8 {[%clk 0:00:10.4]} 60.
Kf6 {[%clk 0:00:04.7]} 60... Ke8 {[%clk 0:00:10.7]} 61. Kg7 {[%clk 0:00:05.1]}
61... Ke7 {[%clk 0:00:10.9]} 62. Kg8 {[%clk 0:00:05.3]} 62... Kf6 {[%clk
0:00:11]} 63. h8=Q+ {[%clk 0:00:04.9]} 63... Nxh8 {[%clk 0:00:10]} 1/2-1/2

[Event "*** SCC Grand Prix: Titled Tuesday Blitz"]
[Site "Chess.com"]
[Date "2020.06.09"]
[Round "4"]
[White "LiverpooL174"]
[Black "ketster"]
[Result "1/2-1/2"]
[WhiteElo "2664"]
[BlackElo "2456"]
[TimeControl "180+1"]
[EndTime "9:40:44 PDT"]
[Termination "Game drawn by repetition"]

1. e4 {[%clk 0:03:00.9]} 1... e5 {[%clk 0:02:59.8]} 2. Nf3 {[%clk 0:03:00.9]}
2... Nc6 {[%clk 0:02:59.2]} 3. Bc4 {[%clk 0:03:00.2]} 3... Nf6 {[%clk
0:02:57.8]} 4. Ng5 {[%clk 0:03:00.1]} 4... d5 {[%clk 0:02:57.5]} 5. exd5 {[%clk
0:03:00.3]} 5... Na5 {[%clk 0:02:57.4]} 6. Bb5+ {[%clk 0:03:01]} 6... c6 {[%clk
0:02:57.4]} 7. dxc6 {[%clk 0:03:00.7]} 7... bxc6 {[%clk 0:02:57.4]} 8. Qf3
{[%clk 0:03:01.5]} 8... Rb8 {[%clk 0:02:52.8]} 9. Nc3 {[%clk 0:03:00.2]} 9...
cxb5 {[%clk 0:02:48.6]} 10. O-O {[%clk 0:02:52.9]} 10... Be7 {[%clk 0:02:43]}
11. d3 {[%clk 0:02:49.8]} 11... h6 {[%clk 0:02:37.6]} 12. Nge4 {[%clk
0:02:49.6]} 12... O-O {[%clk 0:02:36.1]} 13. Nxf6+ {[%clk 0:02:41]} 13... Bxf6
{[%clk 0:02:35.6]} 14. Be3 {[%clk 0:02:41.9]} 14... a6 {[%clk 0:02:25.3]} 15. b4
{[%clk 0:02:36.8]} 15... Bb7 {[%clk 0:02:14.5]} 16. Ne4 {[%clk 0:02:36.9]} 16...
Nc6 {[%clk 0:02:12]} 17. Bxh6 {[%clk 0:02:34.7]} 17... gxh6 {[%clk 0:01:39.1]}
18. Nxf6+ {[%clk 0:02:34.7]} 18... Kh8 {[%clk 0:01:37.3]} 19. Qf5 {[%clk
0:02:31.6]} 19... Kg7 {[%clk 0:01:30.9]} 20. Nh5+ {[%clk 0:02:31.9]} 20... Kh8
{[%clk 0:01:28.9]} 21. Nf6 {[%clk 0:02:31.1]} 21... Kg7 {[%clk 0:01:28.8]} 22.
Nh5+ {[%clk 0:02:26.6]} 22... Kh8 {[%clk 0:01:28.9]} 23. Rfe1 {[%clk 0:02:17.7]}
23... Qg5 {[%clk 0:01:14.9]} 24. Qxg5 {[%clk 0:02:15.6]} 24... hxg5 {[%clk
0:01:14.6]} 25. Nf6 {[%clk 0:02:16.5]} 25... Rbd8 {[%clk 0:01:07]} 26. a3 {[%clk
0:02:13]} 26... Kg7 {[%clk 0:01:06.6]} 27. Ne4 {[%clk 0:02:12]} 27... Kg6 {[%clk
0:01:02.8]} 28. Nc5 {[%clk 0:02:12.1]} 28... Bc8 {[%clk 0:01:02.6]} 29. c3
{[%clk 0:02:08.8]} 29... f6 {[%clk 0:01:02.1]} 30. a4 {[%clk 0:02:04.1]} 30...
Ne7 {[%clk 0:00:51.1]} 31. axb5 {[%clk 0:02:00.8]} 31... axb5 {[%clk 0:00:50.8]}
32. Rec1 {[%clk 0:01:51.5]} 32... Bf5 {[%clk 0:00:47.9]} 33. Ra5 {[%clk
0:01:44.7]} 33... Rb8 {[%clk 0:00:47.1]} 34. f3 {[%clk 0:01:42.1]} 34... Nd5
{[%clk 0:00:39.7]} 35. g4 {[%clk 0:01:36.6]} 35... Bc8 {[%clk 0:00:39.2]} 36.
Ra7 {[%clk 0:01:32.7]} 36... Nf4 {[%clk 0:00:36.9]} 37. Re1 {[%clk 0:01:27.8]}
37... Rd8 {[%clk 0:00:34.9]} 38. d4 {[%clk 0:01:24.6]} 38... Re8 {[%clk
0:00:21.1]} 39. dxe5 {[%clk 0:01:20.7]} 39... fxe5 {[%clk 0:00:20]} 40. Rd1
{[%clk 0:01:14.5]} 40... Rb6 {[%clk 0:00:20]} 41. Ne4 {[%clk 0:01:10.6]} 41...
Ne2+ {[%clk 0:00:19.6]} 42. Kf2 {[%clk 0:01:08.6]} 42... Nf4 {[%clk 0:00:19.7]}
43. Ra8 {[%clk 0:01:06.9]} 43... Bd7 {[%clk 0:00:18.1]} 44. Ra7 {[%clk
0:01:02.6]} 44... Bc6 {[%clk 0:00:17.5]} 45. Rd6+ {[%clk 0:00:59.6]} 45... Re6
{[%clk 0:00:15.9]} 46. Rd8 {[%clk 0:00:59.8]} 46... Bxe4 {[%clk 0:00:14.1]} 47.
fxe4 {[%clk 0:00:54.6]} 47... Rf6 {[%clk 0:00:05.3]} 48. Rg8+ {[%clk 0:00:51.4]}
48... Kh6 {[%clk 0:00:05.2]} 49. Ke3 {[%clk 0:00:49.9]} 49... Ng2+ {[%clk
0:00:04.3]} 50. Ke2 {[%clk 0:00:46.9]} 50... Rfd6 {[%clk 0:00:04.2]} 51. Rh8+
{[%clk 0:00:29.1]} 51... Kg6 {[%clk 0:00:04.3]} 52. Rg8+ {[%clk 0:00:30]} 52...
Kf6 {[%clk 0:00:04.3]} 53. Rf8+ {[%clk 0:00:18]} 53... Ke6 {[%clk 0:00:04]} 54.
Raf7 {[%clk 0:00:14.3]} 54... Nf4+ {[%clk 0:00:02.7]} 55. Ke1 {[%clk 0:00:09.5]}
55... Ra6 {[%clk 0:00:02.6]} 56. Rf6+ {[%clk 0:00:09]} 56... Kd7 {[%clk
0:00:02.6]} 57. R6f7+ {[%clk 0:00:09.2]} 57... Kc6 {[%clk 0:00:02.6]} 58. Rc8+
{[%clk 0:00:09.8]} 58... Kb6 {[%clk 0:00:03]} 59. Rb8+ {[%clk 0:00:10.4]} 59...
Kc6 {[%clk 0:00:03.5]} 60. Rc8+ {[%clk 0:00:10.9]} 60... Kb6 {[%clk 0:00:04]}
61. Rb8+ {[%clk 0:00:10.8]} 61... Kc6 {[%clk 0:00:04.3]} 62. Rc8+ {[%clk
0:00:11.3]} 1/2-1/2

[Event "*** SCC Grand Prix: Titled Tuesday Blitz"]
[Site "Chess.com"]
[Date "2020.06.09"]
[Round "4"]
[White "SergeyKarjakin"]
[Black "Evgeny_Ermakov1965"]
[Result "1/2-1/2"]
[WhiteElo "2964"]
[BlackElo "2525"]
[TimeControl "180+1"]
[EndTime "9:40:46 PDT"]
[Termination "Game drawn by repetition"]

1. e4 {[%clk 0:03:00.9]} 1... c6 {[%clk 0:02:59]} 2. Nf3 {[%clk 0:02:58.9]} 2...
d5 {[%clk 0:02:58.8]} 3. exd5 {[%clk 0:02:59.8]} 3... cxd5 {[%clk 0:02:58.1]} 4.
Ne5 {[%clk 0:03:00.3]} 4... Nf6 {[%clk 0:02:54.8]} 5. d4 {[%clk 0:02:59.6]} 5...
a6 {[%clk 0:02:51]} 6. Bd3 {[%clk 0:02:57.1]} 6... Nbd7 {[%clk 0:02:49.5]} 7.
O-O {[%clk 0:02:55.3]} 7... g6 {[%clk 0:02:47.9]} 8. f4 {[%clk 0:02:39]} 8...
Bg7 {[%clk 0:02:45.9]} 9. Nd2 {[%clk 0:02:38.5]} 9... O-O {[%clk 0:02:44]} 10.
c3 {[%clk 0:02:37.9]} 10... b5 {[%clk 0:02:34.8]} 11. Qe1 {[%clk 0:02:35.7]}
11... Bb7 {[%clk 0:02:32.1]} 12. g4 {[%clk 0:02:25.5]} 12... Nxe5 {[%clk
0:02:29.1]} 13. fxe5 {[%clk 0:02:25.6]} 13... Nxg4 {[%clk 0:02:29]} 14. Nf3
{[%clk 0:02:21.8]} 14... Qd7 {[%clk 0:02:22.8]} 15. h3 {[%clk 0:02:01.3]} 15...
Bc8 {[%clk 0:02:01.8]} 16. Qh4 {[%clk 0:01:48.8]} 16... Nxe5 {[%clk 0:01:58.1]}
17. Nxe5 {[%clk 0:01:41.6]} 17... Qxh3 {[%clk 0:01:58.1]} 18. Qxh3 {[%clk
0:01:39.1]} 18... Bxh3 {[%clk 0:01:59]} 19. Re1 {[%clk 0:01:39.1]} 19... e6
{[%clk 0:01:52.5]} 20. a4 {[%clk 0:01:38.6]} 20... Bxe5 {[%clk 0:01:50]} 21.
dxe5 {[%clk 0:01:35.9]} 21... Rab8 {[%clk 0:01:45.2]} 22. Bg5 {[%clk 0:01:31]}
22... bxa4 {[%clk 0:01:42]} 23. Re2 {[%clk 0:01:24.7]} 23... h5 {[%clk
0:01:35.7]} 24. Rxa4 {[%clk 0:01:22.7]} 24... Rb6 {[%clk 0:01:34.9]} 25. b4
{[%clk 0:00:54.9]} 25... Rc6 {[%clk 0:01:29.2]} 26. Rc2 {[%clk 0:00:50.6]} 26...
Bf5 {[%clk 0:01:27.3]} 27. Bxf5 {[%clk 0:00:48.8]} 27... exf5 {[%clk 0:01:28.2]}
28. Rca2 {[%clk 0:00:40.8]} 28... Rxc3 {[%clk 0:01:26.3]} 29. Bf6 {[%clk
0:00:40.6]} 29... Rc4 {[%clk 0:01:24.4]} 30. Kh2 {[%clk 0:00:34.9]} 30... Rb8
{[%clk 0:01:17.6]} 31. Be7 {[%clk 0:00:30.9]} 31... g5 {[%clk 0:01:13.3]} 32.
Rxa6 {[%clk 0:00:28.5]} 32... Kg7 {[%clk 0:01:06.5]} 33. Bxg5 {[%clk 0:00:23.4]}
33... Rbxb4 {[%clk 0:01:04.5]} 34. Bf6+ {[%clk 0:00:18.5]} 34... Kh7 {[%clk
0:01:02.4]} 35. Ra8 {[%clk 0:00:19]} 35... Rb3 {[%clk 0:00:49.9]} 36. Rh8+
{[%clk 0:00:17.7]} 36... Kg6 {[%clk 0:00:50.2]} 37. Rg8+ {[%clk 0:00:18.6]}
37... Kh6 {[%clk 0:00:48.8]} 38. Rf8 {[%clk 0:00:12.9]} 38... Kg6 {[%clk
0:00:47.1]} 39. Rg8+ {[%clk 0:00:11.4]} 39... Kh6 {[%clk 0:00:46.8]} 40. Rd8
{[%clk 0:00:12.3]} 40... Rg4 {[%clk 0:00:37]} 41. Rxd5 {[%clk 0:00:10.1]} 41...
Kg6 {[%clk 0:00:34.5]} 42. Rd8 {[%clk 0:00:08.2]} 42... f4 {[%clk 0:00:32.7]}
43. Rg8+ {[%clk 0:00:07.9]} 43... Kf5 {[%clk 0:00:32.7]} 44. Rh8 {[%clk
0:00:08.8]} 44... h4 {[%clk 0:00:28.5]} 45. Rh5+ {[%clk 0:00:06.9]} 45... Kg6
{[%clk 0:00:26.5]} 46. Rxh4 {[%clk 0:00:05.2]} 46... Rxh4+ {[%clk 0:00:24.4]}
47. Bxh4 {[%clk 0:00:06.1]} 47... Kf5 {[%clk 0:00:25.3]} 48. Bf6 {[%clk
0:00:06.3]} 48... Kg4 {[%clk 0:00:23.4]} 49. Kg2 {[%clk 0:00:06.6]} 49... Rg3+
{[%clk 0:00:19.1]} 50. Kf2 {[%clk 0:00:06.5]} 50... Rf3+ {[%clk 0:00:18.9]} 51.
Kg1 {[%clk 0:00:06.1]} 51... Rb3 {[%clk 0:00:16.7]} 52. Kg2 {[%clk 0:00:05]}
52... Rg3+ {[%clk 0:00:14.8]} 53. Kf1 {[%clk 0:00:04.9]} 53... Rf3+ {[%clk
0:00:14.9]} 54. Ke2 {[%clk 0:00:04.2]} 54... Rb3 {[%clk 0:00:15.8]} 55. Ra8
{[%clk 0:00:04.5]} 55... f3+ {[%clk 0:00:13.9]} 56. Kf2 {[%clk 0:00:02.3]} 56...
Rb2+ {[%clk 0:00:12]} 57. Kf1 {[%clk 0:00:02.1]} 57... Rb1+ {[%clk 0:00:11.7]}
58. Kf2 {[%clk 0:00:02.2]} 58... Rb2+ {[%clk 0:00:11.9]} 59. Kf1 {[%clk
0:00:02.2]} 59... Rb1+ {[%clk 0:00:11.8]} 60. Kf2 {[%clk 0:00:02.4]} 60... Rb2+
{[%clk 0:00:12.5]} 1/2-1/2

[Event "*** SCC Grand Prix: Titled Tuesday Blitz"]
[Site "Chess.com"]
[Date "2020.06.09"]
[Round "4"]
[White "lucachess49"]
[Black "Fh2411"]
[Result "1-0"]
[WhiteElo "2314"]
[BlackElo "2421"]
[TimeControl "180+1"]
[EndTime "9:40:48 PDT"]
[Termination "lucachess49 won by resignation"]

1. d4 {[%clk 0:03:00.9]} 1... Nf6 {[%clk 0:02:58.3]} 2. c4 {[%clk 0:03:00.8]}
2... e6 {[%clk 0:02:57.9]} 3. Nc3 {[%clk 0:03:00.8]} 3... Bb4 {[%clk 0:02:58]}
4. e3 {[%clk 0:03:01]} 4... O-O {[%clk 0:02:53.8]} 5. Ne2 {[%clk 0:02:56.5]}
5... Re8 {[%clk 0:02:49]} 6. a3 {[%clk 0:02:56]} 6... Bf8 {[%clk 0:02:49.1]} 7.
Ng3 {[%clk 0:02:56.4]} 7... d5 {[%clk 0:02:44.3]} 8. Be2 {[%clk 0:02:56.3]} 8...
b6 {[%clk 0:02:20.1]} 9. cxd5 {[%clk 0:02:56]} 9... exd5 {[%clk 0:02:17.3]} 10.
O-O {[%clk 0:02:56]} 10... c5 {[%clk 0:02:12.4]} 11. dxc5 {[%clk 0:02:53.9]}
11... bxc5 {[%clk 0:02:13.3]} 12. Nh5 {[%clk 0:02:52.9]} 12... Nxh5 {[%clk
0:02:05.9]} 13. Bxh5 {[%clk 0:02:47.8]} 13... Bb7 {[%clk 0:01:54.6]} 14. Bf3
{[%clk 0:02:46.7]} 14... Re5 {[%clk 0:01:54.5]} 15. b4 {[%clk 0:02:45.3]} 15...
cxb4 {[%clk 0:01:49.1]} 16. axb4 {[%clk 0:02:41.7]} 16... Bxb4 {[%clk 0:01:32]}
17. Qb3 {[%clk 0:02:33.9]} 17... a5 {[%clk 0:01:26.8]} 18. Rd1 {[%clk
0:02:29.2]} 18... Na6 {[%clk 0:01:17]} 19. Bb2 {[%clk 0:01:45.3]} 19... Nc5
{[%clk 0:01:08]} 20. Qa2 {[%clk 0:01:45.1]} 20... Rc8 {[%clk 0:00:46.3]} 21.
Nxd5 {[%clk 0:01:43.1]} 21... Bxd5 {[%clk 0:00:44.1]} 22. Bxd5 {[%clk
0:01:38.8]} 22... Rxd5 {[%clk 0:00:40.5]} 23. Rxd5 {[%clk 0:01:32.5]} 23... Qf8
{[%clk 0:00:36.4]} 24. Rad1 {[%clk 0:01:29.7]} 24... Ne6 {[%clk 0:00:32.4]} 25.
h3 {[%clk 0:01:18.8]} 25... h6 {[%clk 0:00:32.5]} 26. Ba1 {[%clk 0:01:09.9]}
26... Qe8 {[%clk 0:00:21]} 27. Qb2 {[%clk 0:01:03.7]} 27... Qc6 {[%clk
0:00:21.3]} 28. Qe5 {[%clk 0:00:55.7]} 28... Qc2 {[%clk 0:00:14.7]} 29. e4
{[%clk 0:00:48.5]} 29... Qe2 {[%clk 0:00:13.9]} 30. Rd8+ {[%clk 0:00:43.4]}
30... Bf8 {[%clk 0:00:07.4]} 31. R8d2 {[%clk 0:00:36.9]} 31... Qc4 {[%clk
0:00:03.4]} 32. Qb2 {[%clk 0:00:26.8]} 32... a4 {[%clk 0:00:03.5]} 33. Qa2
{[%clk 0:00:25.9]} 33... Qxe4 {[%clk 0:00:03.5]} 34. Re2 {[%clk 0:00:22.5]}
34... Qc6 {[%clk 0:00:04.4]} 35. Rde1 {[%clk 0:00:18.3]} 35... Qc4 {[%clk
0:00:04.7]} 36. Qxc4 {[%clk 0:00:16.9]} 36... Rxc4 {[%clk 0:00:05.6]} 37. Re4
{[%clk 0:00:17.2]} 37... Rxe4 {[%clk 0:00:05.7]} 38. Rxe4 {[%clk 0:00:16.9]}
38... a3 {[%clk 0:00:06.6]} 39. Ra4 {[%clk 0:00:16.9]} 39... f6 {[%clk
0:00:05.2]} 40. Ra8 {[%clk 0:00:16.4]} 40... Kf7 {[%clk 0:00:06.1]} 41. Ra7+
{[%clk 0:00:15.4]} 41... Be7 {[%clk 0:00:06.5]} 42. f3 {[%clk 0:00:15.9]} 42...
Nf4 {[%clk 0:00:05.8]} 43. Kf1 {[%clk 0:00:15.8]} 43... Nd3 {[%clk 0:00:06.1]}
44. Ke2 {[%clk 0:00:15.4]} 44... Nc1+ {[%clk 0:00:06.5]} 45. Kd1 {[%clk
0:00:15.6]} 45... Nb3 {[%clk 0:00:07.4]} 46. Bc3 {[%clk 0:00:15.5]} 46... Ke6
{[%clk 0:00:05.9]} 47. Kc2 {[%clk 0:00:15.6]} 47... Nc5 {[%clk 0:00:06.3]} 48.
Rxa3 {[%clk 0:00:14.6]} 48... Nd7 {[%clk 0:00:05.4]} 49. Ra6+ {[%clk 0:00:14.7]}
49... Kf7 {[%clk 0:00:05.5]} 50. Ra7 {[%clk 0:00:14.9]} 50... Ke6 {[%clk
0:00:06.2]} 51. Kd2 {[%clk 0:00:13.9]} 51... Nf8 {[%clk 0:00:04]} 52. Ke2 {[%clk
0:00:11.8]} 52... Ng6 {[%clk 0:00:04.1]} 53. g3 {[%clk 0:00:11]} 53... h5 {[%clk
0:00:04.2]} 54. h4 {[%clk 0:00:10.4]} 54... Bf8 {[%clk 0:00:01.8]} 55. f4 {[%clk
0:00:10.3]} 55... Be7 {[%clk 0:00:02.2]} 56. Kf3 {[%clk 0:00:09.9]} 56... Kf5
{[%clk 0:00:03.1]} 57. Ra5+ {[%clk 0:00:09.1]} 57... Ke6 {[%clk 0:00:03.5]} 58.
f5+ {[%clk 0:00:09.5]} 58... Kf7 {[%clk 0:00:04.4]} 59. fxg6+ {[%clk 0:00:09.5]}
59... Kxg6 {[%clk 0:00:05.3]} 60. Ra7 {[%clk 0:00:09.7]} 60... Bd6 {[%clk
0:00:05.8]} 61. Rb7 {[%clk 0:00:10.1]} 61... Bc5 {[%clk 0:00:05.4]} 62. Bd2
{[%clk 0:00:10.1]} 62... Bd6 {[%clk 0:00:06]} 63. Bf4 {[%clk 0:00:10.3]} 63...
Bc5 {[%clk 0:00:06.7]} 64. Rd7 {[%clk 0:00:09.9]} 64... Bf8 {[%clk 0:00:06.9]}
65. Bd6 {[%clk 0:00:10]} 65... Bxd6 {[%clk 0:00:06.9]} 66. Rxd6 {[%clk
0:00:10.5]} 1-0

[Event "*** SCC Grand Prix: Titled Tuesday Blitz"]
[Site "Chess.com"]
[Date "2020.06.09"]
[Round "4"]
[White "MateSchmate"]
[Black "TheBigBadChessDad"]
[Result "1-0"]
[WhiteElo "2435"]
[BlackElo "2243"]
[TimeControl "180+1"]
[EndTime "9:40:48 PDT"]
[Termination "MateSchmate won by checkmate"]

1. e4 {[%clk 0:03:00.9]} 1... e5 {[%clk 0:02:59.2]} 2. Nf3 {[%clk 0:03:00.7]}
2... Nf6 {[%clk 0:02:58.5]} 3. Nxe5 {[%clk 0:02:59]} 3... d6 {[%clk 0:02:58.3]}
4. Nf3 {[%clk 0:02:59.1]} 4... Nxe4 {[%clk 0:02:56.3]} 5. Nc3 {[%clk 0:03:00]}
5... Nxc3 {[%clk 0:02:55]} 6. bxc3 {[%clk 0:03:00.9]} 6... Be7 {[%clk
0:02:55.3]} 7. g3 {[%clk 0:03:01.4]} 7... c6 {[%clk 0:02:51.4]} 8. Bg2 {[%clk
0:03:01.5]} 8... O-O {[%clk 0:02:50.5]} 9. O-O {[%clk 0:03:01.9]} 9... d5 {[%clk
0:02:49.2]} 10. d3 {[%clk 0:03:01.6]} 10... Nd7 {[%clk 0:02:45.3]} 11. Bf4
{[%clk 0:02:59.2]} 11... Nf6 {[%clk 0:02:39.8]} 12. h3 {[%clk 0:02:58.2]} 12...
h6 {[%clk 0:02:34.5]} 13. Kh2 {[%clk 0:02:57.1]} 13... Bd6 {[%clk 0:02:33.3]}
14. Qd2 {[%clk 0:02:56.4]} 14... Re8 {[%clk 0:02:29.2]} 15. Rab1 {[%clk
0:02:48.5]} 15... b5 {[%clk 0:02:16.9]} 16. Nd4 {[%clk 0:02:46]} 16... Qc7
{[%clk 0:02:04.8]} 17. Bxd6 {[%clk 0:02:33.1]} 17... Qxd6 {[%clk 0:02:03.1]} 18.
c4 {[%clk 0:02:34]} 18... bxc4 {[%clk 0:01:38.6]} 19. dxc4 {[%clk 0:02:26.3]}
19... Ba6 {[%clk 0:01:21.8]} 20. Nf5 {[%clk 0:01:53.9]} 20... Qd7 {[%clk
0:01:21.6]} 21. Ne3 {[%clk 0:01:45.9]} 21... d4 {[%clk 0:01:21.5]} 22. Ng4
{[%clk 0:01:44.3]} 22... Nxg4+ {[%clk 0:01:20.3]} 23. hxg4 {[%clk 0:01:45.2]}
23... Bxc4 {[%clk 0:01:19.4]} 24. Rb4 {[%clk 0:01:43.9]} 24... Bxf1 {[%clk
0:01:16.8]} 25. Rxd4 {[%clk 0:01:42.6]} 25... Qe6 {[%clk 0:01:02.1]} 26. Bxf1
{[%clk 0:01:42]} 26... Qe1 {[%clk 0:01:00.2]} 27. Qxe1 {[%clk 0:01:37.4]} 27...
Rxe1 {[%clk 0:01:01.1]} 28. Bd3 {[%clk 0:01:38]} 28... Re7 {[%clk 0:00:57.2]}
29. a4 {[%clk 0:01:37.4]} 29... a5 {[%clk 0:00:56.4]} 30. Rd6 {[%clk 0:01:36.4]}
30... Rc8 {[%clk 0:00:54.8]} 31. Bf5 {[%clk 0:01:33.2]} 31... Rce8 {[%clk
0:00:40.7]} 32. Rxc6 {[%clk 0:01:31.1]} 32... g6 {[%clk 0:00:41.1]} 33. Bd3
{[%clk 0:01:29.8]} 33... Re6 {[%clk 0:00:40.2]} 34. Rc5 {[%clk 0:01:28]} 34...
Re5 {[%clk 0:00:40.4]} 35. Rc7 {[%clk 0:01:25.7]} 35... R8e7 {[%clk 0:00:40.8]}
36. Rc8+ {[%clk 0:01:25.6]} 36... Kg7 {[%clk 0:00:41.3]} 37. f4 {[%clk
0:01:24.9]} 37... Re3 {[%clk 0:00:34.7]} 38. Ra8 {[%clk 0:01:24.2]} 38... Re1
{[%clk 0:00:26.5]} 39. Rxa5 {[%clk 0:01:22.3]} 39... Ra1 {[%clk 0:00:27.4]} 40.
Ra8 {[%clk 0:01:20.8]} 40... Ree1 {[%clk 0:00:24.8]} 41. Kg2 {[%clk 0:01:19.7]}
41... Rg1+ {[%clk 0:00:23.3]} 42. Kf3 {[%clk 0:01:19.6]} 42... Rgb1 {[%clk
0:00:22.9]} 43. a5 {[%clk 0:01:19]} 43... Rb7 {[%clk 0:00:22.4]} 44. a6 {[%clk
0:01:18.3]} 44... Rd7 {[%clk 0:00:21.3]} 45. Rc8 {[%clk 0:01:14.7]} 45... Rxd3+
{[%clk 0:00:19]} 46. cxd3 {[%clk 0:01:12.7]} 46... Rxa6 {[%clk 0:00:19.9]} 47.
Rd8 {[%clk 0:01:07.4]} 47... g5 {[%clk 0:00:18.3]} 48. fxg5 {[%clk 0:00:57.5]}
48... hxg5 {[%clk 0:00:17.7]} 49. Ke4 {[%clk 0:00:58.4]} 49... f6 {[%clk
0:00:13.5]} 50. d4 {[%clk 0:00:57.6]} 50... Ra3 {[%clk 0:00:12]} 51. Kf5 {[%clk
0:00:46.6]} 51... Rf3+ {[%clk 0:00:11.8]} 52. Ke6 {[%clk 0:00:45.5]} 52... Re3+
{[%clk 0:00:11.7]} 53. Kf5 {[%clk 0:00:40.8]} 53... Rf3+ {[%clk 0:00:11.4]} 54.
Ke6 {[%clk 0:00:25.5]} 54... Re3+ {[%clk 0:00:10.7]} 55. Kd7 {[%clk 0:00:25.5]}
55... Rxg3 {[%clk 0:00:10.1]} 56. d5 {[%clk 0:00:25.8]} 56... Rxg4 {[%clk
0:00:09.8]} 57. d6 {[%clk 0:00:25.8]} 57... Kf7 {[%clk 0:00:07.3]} 58. Rh8
{[%clk 0:00:25.1]} 58... Rd4 {[%clk 0:00:05.4]} 59. Rh7+ {[%clk 0:00:24.9]}
59... Kg6 {[%clk 0:00:05.1]} 60. Rh8 {[%clk 0:00:21.7]} 60... g4 {[%clk
0:00:05.5]} 61. Ke6 {[%clk 0:00:21.9]} 61... Re4+ {[%clk 0:00:04.9]} 62. Kd5
{[%clk 0:00:22]} 62... Re1 {[%clk 0:00:05.1]} 63. d7 {[%clk 0:00:17.3]} 63...
Kf5 {[%clk 0:00:05.1]} 64. Rh5+ {[%clk 0:00:13.7]} 64... Kf4 {[%clk 0:00:04.3]}
65. Kd6 {[%clk 0:00:12.6]} 65... Rd1+ {[%clk 0:00:03.9]} 66. Rd5 {[%clk
0:00:12.4]} 66... Rxd5+ {[%clk 0:00:02.2]} 67. Kxd5 {[%clk 0:00:13.3]} 67... g3
{[%clk 0:00:02.7]} 68. d8=Q {[%clk 0:00:13.3]} 68... g2 {[%clk 0:00:03.4]} 69.
Qxf6+ {[%clk 0:00:13.1]} 69... Kg3 {[%clk 0:00:04]} 70. Qg5+ {[%clk 0:00:12.9]}
70... Kf2 {[%clk 0:00:04.2]} 71. Qf4+ {[%clk 0:00:12.9]} 71... Kg1 {[%clk
0:00:04.6]} 72. Ke4 {[%clk 0:00:12.4]} 72... Kh1 {[%clk 0:00:04]} 73. Qh4+
{[%clk 0:00:12.3]} 73... Kg1 {[%clk 0:00:03.7]} 74. Kf3 {[%clk 0:00:13]} 74...
Kf1 {[%clk 0:00:04.2]} 75. Qf2# {[%clk 0:00:12.9]} 1-0